Cogmind - Beta 14 @@@ ROGUE MODE // 2024.10.23 @ 15:17:31 Player: Fire Result: Destroyed by IN-E4I(R) with Subdweller Beam Cannon Performance ------------- Evolutions (0) 0 Regions Visited (2) 400 Robots Destroyed (16) 80 Value Destroyed (346) 346 Prototype IDs (0) 0 Alien Tech Used (0) 0 Bonus (0) 0 TOTAL SCORE: 826 Bonus ------- None Cogmind --------- Core Integrity 0/250 Matter 290/300 Energy 250/250 System Corruption 0% Temperature Cool (9) Movement Core (200) Ox3 Location -10/Subcaves Parts ------- > --- POWER (1) -------- Ion Engine > --- PROPULSION (2) --- (None) > --- UTILITY (2) ------ Small Storage Unit Terrain Scan Processor > --- WEAPON (2) ------- Light Assault Rifle Light Assault Rifle > --- INVENTORY (8) ---- Wheel Subdweller Monowheel Sensor Array Signal Interpreter Scrap Shield Datajack Peak State ------------ > --- POWER ------------ Ion Engine > --- PROPULSION ------- Light Treads Light Treads > --- UTILITY ---------- Small Storage Unit Terrain Scan Processor > --- WEAPON ----------- Beam Rifle Light Assault Rifle > --- INVENTORY -------- Ion Engine Aluminum Leg Wheel Sensor Array Signal Interpreter Medium Laser Medium Laser [Rating: 9] Favorites ----------- Power Ion Engine Engine Ion Engine Propulsion Light Treads Treads Light Treads Wheel Wheel Utility Small Storage Unit Device Heat Sink Storage Small Storage Unit Processor Terrain Scan Processor Weapon Light Assault Rifle Energy Gun Medium Laser Ballistic Gun Light Assault Rifle Build | -11 -10 -10 ------- Run | Yrd Mat Sub Slots Evolved . | . . . Power . | . . . Propulsion . | . . . Utility . | . . . Weapon . | . . . Parts Attached 30 | 6 23 1 Power 6 | 1 5 . Engine 6 | 1 5 . Core . | . . . Reactor . | . . . Propulsion 5 | 2 3 . Treads 2 | . 2 . Leg . | . . . Wheel 3 | 2 1 . Hover . | . . . Flight . | . . . Utility 5 | 1 4 . Device 3 | . 3 . Storage 1 | 1 . . Processor 1 | . 1 . Hackware . | . . . Protection . | . . . Artifact . | . . . Weapon 14 | 2 11 1 Energy Gun 7 | 1 6 . Energy Cannon . | . . . Ballistic Gun 7 | 1 5 1 Ballistic Cannon . | . . . Launcher . | . . . Special Weapon . | . . . Impact Weapon . | . . . Slashing Weapon . | . . . Piercing Weapon . | . . . Special Melee Weapon . | . . . Unidentified Prototypes . | . . . Parts Lost 5 | . 2 3 Power 1 | . 1 . Propulsion 3 | . 1 2 Utility . | . . . Weapon 1 | . . 1 Highest Loss Streak 3 | . 1 3 To Critical Strikes 1 | . . 1 Average Slot Usage (%) 94 | . 93 98 Engine 12 | . 11 14 Treads 20 | . 19 26 Wheel 5 | . 6 . Device 1 | . 2 . Storage 14 | . 14 14 Processor 10 | . 9 14 Energy Gun 13 | . 13 13 Ballistic Gun 14 | . 13 14 Peak Build Rating 9 | 6 9 9 Average Rating 7 | 4 7 8 On Entrance 4 | . 6 8 Naked Turns . | . . . Heaviest Build 14 | 13 14 13 Greatest Support 40 | 20 40 40 Greatest Overweight (x) 1 | . 1 . Average Overweight (x) . | . . . Largest Inventory Capacity 8 | 8 8 8 Average Capacity 7 | 7 8 8 Most Carried 8 | 7 8 8 Average Carried 6 | 2 6 7 Final Capacity 8 | 8 8 8 Final Carried 7 | 6 7 7 Class Distribution -------------------- 100% | Mutant Dominant Class ---------------- Mutant | -10/Materials Mutant | -10/Subcaves Resources | -11 -10 -10 ----------- Run | Yrd Mat Sub Matter Collected 530 | 192 335 3 Remotely . | . . . Salvage Created 428 | . 384 44 Parts 38 | . 35 3 Haulers Intercepted . | . . . Recyclers Shooed . | . . . Parts Field Recycled . | . . . Retrieved Matter . | . . . Parts Self-Destructed . | . . . Prevented . | . . . Kills | -11 -10 -10 ------- Run | Yrd Mat Sub Combat Hostiles Destroyed 14 | . 13 1 Guns 14 | . 13 1 Classes Destroyed 4 | . 3 1 Watcher 2 | . 2 . Swarmer 7 | . 7 . Grunt 6 | . 6 . Subdweller 1 | . . 1 Best Kill Streak 4 | . 4 1 Combat Bots Only 4 | . 4 1 Max Kills in Single Turn 2 | . 2 1 Gunslinging 1 | . 1 . Exploded . | . . . Melee . | . . . Uniques/NPCs Destroyed . | . . . Combat | -11 -10 -10 -------- Run | Yrd Mat Sub Hostile Shots Fired 109 | . 84 25 Missed 40 | . 33 7 Damage Taken 864 | . 464 400 Core 267 | . 140 127 Absorbed by Shields . | . . . Regen/Repaired (Parts) 16 | . 16 . Core Remaining (%) 100 | 100 . . Volleys Fired 56 | . 47 9 Largest 2 | . 2 2 Hottest 76 | . 76 70 Shots Fired 105 | . 88 17 Gun 105 | . 88 17 Cannon . | . . . Launcher . | . . . Special . | . . . Kinetic 58 | . 47 11 Thermal 47 | . 41 6 Explosive . | . . . Electromagnetic . | . . . Robot Hit Streak 13 | . 13 9 Robot Miss Streak 5 | . 5 1 Penetration Max . | . . . Secondary Targets 3 | . 2 1 Max Gunslinging Chain 1 | . 1 1 Shots Hit Robots 71 | . 57 14 Core Hits 32 | . 28 4 Critical Kills . | . . . Critical Parts Destroyed . | . . . Critical Strikes 2 | . 2 . Burn 2 | . 2 . Melee Attacks . | . . . Impact . | . . . Slashing . | . . . Piercing . | . . . Sneak Attacks . | . . . Combat Hostiles . | . . . Follow-up Attacks . | . . . Damage Inflicted 754 | . 623 131 Guns 754 | . 623 131 Cannons . | . . . Explosions . | . . . Melee . | . . . Ramming . | . . . Kinetic 309 | . 228 81 Thermal 445 | . 395 50 Explosive . | . . . Electromagnetic . | . . . Impact . | . . . Slashing . | . . . Piercing . | . . . Highest Corruption . | . . . Average Corruption . | . . . Corruption Purged . | . . . Corruption Blocked . | . . . Overload Shots . | . . . Overflow Damage . | . . . Projectiles . | . . . Explosions . | . . . Melee . | . . . Knockbacks . | . . . Impact . | . . . Kinetic . | . . . Secondary . | . . . Self-Inflicted Damage . | . . . Shots . | . . . Rammed . | . . . Targets Rammed . | . . . Kicked . | . . . Crushed . | . . . Highest Temperature 133 | . 133 4 Average Temperature 36 | . 37 2 Received Heat Transfer 177 | . 90 87 Siege Activations . | . . . Robots Corrupted . | . . . Combat Hostiles . | . . . Parts Fried . | . . . Impact Corruptions . | . . . Robots Melted . | . . . Combat Hostiles . | . . . Parts Melted 1 | . 1 . Heat Transferred 1406 | . 1258 148 Parts Sabotaged . | . . . Parts Stolen . | . . . Parts Stripped . | . . . Power Chain Reactions . | . . . Alert | -11 -10 -10 ------- Run | Yrd Mat Sub Peak Influence 246 | . 246 . Initial . | . . . Average 120 | . 129 . Maximum Alert Level 1 | . 1 . Low Security (%) 63 | 100 60 . Level 1 36 | . 39 . Level 2 . | . . . Level 3 . | . . . Level 4 . | . . . Level 5 . | . . . High Security . | . . . Max Security . | . . . Squads Dispatched 5 | . 5 . Investigation 3 | . 3 . Extermination . | . . . Reinforcement 2 | . 2 . Assault . | . . . Garrison . | . . . Intercept . | . . . Searches Triggered . | . . . Construction Impeded . | . . . Haulers Reinforced . | . . . Active Scanning Responses . | . . . Cargo Convoy Interrupts . | . . . Stealth | -11 -10 -10 --------- Run | Yrd Mat Sub Distress Signals . | . . . Communications Jammed . | . . . Distress Signals . | . . . Times Spotted 37 | . 26 11 Peak Tracking Total 8 | . 8 8 Tactical Retreats 2 | . 2 . Traps | -11 -10 -10 ------- Run | Yrd Mat Sub Traps Triggered 6 | . 6 . Indirectly . | . . . Trap Hack Attempts . | . . . Triggered . | . . . Disarmed . | . . . Reprogrammed . | . . . Reused . | . . . Traps Extracted . | . . . Installed . | . . . Triggered . | . . . Machines | -11 -10 -10 ---------- Run | Yrd Mat Sub Machines Disabled . | . . . Max in Single Turn . | . . . Machines Repaired . | . . . Machines Dismantled . | . . . Machines Sabotaged . | . . . Overloaded Fab Kills . | . . . Hacking | -11 -10 -10 --------- Run | Yrd Mat Sub Machines Accessed 7 | . 7 . Terminals 5 | . 5 . Fabricators . | . . . Repair Stations 1 | . 1 . Recycling Units 1 | . 1 . Scanalyzers . | . . . Garrison Access . | . . . Total Hacks 32 | . 32 . Successful 23 | . 23 . Failed 9 | . 9 . Catastrophic 1 | . 1 . Database Lockouts . | . . . Manual 16 | . 16 . Terminals 20 | . 20 . Fabricators . | . . . Repair Stations 7 | . 7 . Recycling Units 5 | . 5 . Scanalyzers . | . . . Garrison Access . | . . . Terminal Hacks 6 | . 6 . Record 6 | . 6 . Fabricator Hacks . | . . . Repair Station Hacks 4 | . 4 . Scan Component 2 | . 2 . Repair 2 | . 2 . Recycling Unit Hacks 1 | . 1 . Report Inventory 1 | . 1 . Scanalyzer . | . . . Garrison Access Hacks . | . . . Unauthorized Hacks 12 | . 12 . Terminals 9 | . 9 . Track 3 | . 3 . Botnet 5 | . 5 . Search 1 | . 1 . Fabricators . | . . . Repair Stations 1 | . 1 . Mechanics 1 | . 1 . Recycling Units 2 | . 2 . Monitor 1 | . 1 . Recyclers 1 | . 1 . Scanalyzers . | . . . Garrison Access . | . . . Data Cores Recovered . | . . . Used . | . . . Hacking Detections 7 | . 7 . Full Trace Events 3 | . 3 . Feedback Events . | . . . Feedback Blocked . | . . . Robot Schematics Acquired . | . . . Robots Built . | . . . Authchips . | . . . Time . | . . . Total Robot Build Rating . | . . . Part Schematics Acquired . | . . . Parts Built . | . . . Authchips . | . . . Time . | . . . Total Part Build Rating . | . . . Parts Repaired 2 | . 2 . Time 52 | . 52 . Parts Recycled . | . . . Recycled Matter . | . . . Retrieved Matter . | . . . Retrieved Components . | . . . Parts Scanalyzed . | . . . Part Schematics Acquired . | . . . Parts Damaged . | . . . Bothacking | -11 -10 -10 ------------ Run | Yrd Mat Sub Used RIF Installer . | . . . Robots Hacked . | . . . Non-combat . | . . . Combat . | . . . Robot Hacks Applied . | . . . Relay Couplers Released . | . . . Fabnet Peak Effective % . | . . . Robots Rewired . | . . . Allies Hacked . | . . . Hacks Repelled . | . . . Allies | -11 -10 -10 -------- Run | Yrd Mat Sub Total Allies . | . . . Largest Group . | . . . Highest-Rated Group . | . . . Highest-Rated Ally . | . . . Total Orders . | . . . Ally Attacks . | . . . Total Damage . | . . . Kills . | . . . Allies Corrupted . | . . . Allies Melted . | . . . Intel | -11 -10 -10 ------- Run | Yrd Mat Sub Robot Analysis Total . | . . . Derelict Logs Recovered . | . . . Drone Launches . | . . . Drone Recoveries . | . . . Exploration | -11 -10 -10 ------------- Run | Yrd Mat Sub Turns Passed 1092 | 68 845 179 Spaces Moved 642 | 64 484 94 Core 1 | 1 . . Treads 406 | . 312 94 Legs . | . . . Wheels 235 | 63 172 . Hover . | . . . Flight . | . . . Fastest Speed 50 | 50 80 160 Average Speed 131 | 79 132 160 Slowest Speed 160 | 80 160 160 Overloaded Moves . | . . . Propulsion Burnouts . | . . . Robots Hopped . | . . . Cave-ins Triggered . | . . . Exploration Rate (%) 23 | 3 60 8 Regions Visited 2 Branch Regions 1 Pre-discovered Areas . | . . . Known Exits Taken . | . . . Unknown Exits Taken 2 | 1 1 . Scrap Searched . | . . . Spaces Dug . | . . . Terrain Destroyed . | . . . Melee . | . . . Projectile . | . . . AOE . | . . . Terrain Rammed . | . . . Walls Destroyed . | . . . Machines Disabled . | . . . Actions | -11 -10 -10 --------- Run | Yrd Mat Sub Total 789 | 78 603 108 Wait 40 | 2 38 . Move 640 | 63 483 94 Hop . | . . . Pick Up 15 | 7 6 2 Fast Attach 22 | 5 17 . Attach 6 | 1 4 1 Detach 1 | . 1 . Swap 2 | . 2 . Drop 7 | . 5 2 Fire 56 | . 47 9 Melee . | . . . Ram . | . . . Kick . | . . . Crush . | . . . Escape Stasis . | . . . Rewire . | . . . Trap . | . . . Miscellaneous . | . . . Route ------- -11/Scrapyard -10/Materials (discovered 3 exits: [*Mat] / [*Min] / [*Sub]) -10/Subcaves History --------- Turn | Location | Event 36 | -11/Scrapyard | Discovered new exit (range 13) 69 | -11/Scrapyard | Entered Materials 344 | -10/Materials | Build established: Mutant 367 | -10/Materials | Repaired Ion Engine 393 | -10/Materials | Repaired Wheel 425 | -10/Materials | Discovered new exit (range 3) 600 | -10/Materials | Core integrity fell below 50% 766 | -10/Materials | Discovered new exit (range 15) 891 | -10/Materials | Discovered new exit (range 7) 914 | -10/Materials | Entered Subcaves 1073 | -10/Subcaves | Ambushed by swarm of Subdwellers 1073 | -10/Subcaves | Ambushed by Subdwellers from Twisted Machinery 1077 | -10/Subcaves | Ambushed by Subdwellers from Twisted Machinery 1082 | -10/Subcaves | Core integrity fell below 20% 1093 | -10/Subcaves | Destroyed by IN-E4I(R) with Subdweller Beam Cannon Last Messages --------------- 0H-89E(R) destroyed. KI-QRT(R) destroyed. HV Slug penetrates RP-DJV(R). RP-DJV(R) knocked back. HV Slug penetrates RP-DJV(R). Med. Laser destroyed. HV Slug penetrates 2I-MOR(R). 2I-MOR(R) suffers critical hit (Destroy). EK-OBS(R) emerges from the Twisted Machinery. 2I-MOR(R) destroyed. Lgt. Treads destroyed. IN-E4I(R) affixes Scrap Shield Fragment to Scrap Shield. XT-VXL(R) destroyed. Switching to secondary target: EK-OBS(R). HV Slug penetrates 6Q-OGB(R). 6Q-OGB(R) suffers critical hit (Destroy). 6Q-OGB(R) knocked back. A8-98C(g) destroyed. TE-FZM(h) destroyed. Map ----- +----------------------------------------------------+ | ?????????????????????????????? #??????????? | | ????????????????????????????? #?????????? | | ????????????????????????????? ###???????? | | ????????????????????###??????? ####????? | | ???????????????????## ###??????# ##???? | | ???????????????????# #???????# ##??? | | ??????????????????## #????????# ###? | | ?????????????????## ###???????# ## | | ????????????????## ######### # | | ????????????????# ## ## | | ???????????????## ## | | ???????????????# ## ### | | ???????????????# #### ### | | ???????????????# ### ### ##?# [ | | ???????????????# #?## ##?### # | | ???????????????# #?## [* ! ## ##### | | ???????????????## #### *%=!! ###? | | ????????????????# ##?# | | ???????????????# #??# % = | | ???????????????# #?#; ! | | ???????????????# ### % ##### | | ???????????????### ###### R ; #???? | | ?????????????????######?### ; #????## | | ???????????????????????## %=%R% ;##?????? | | ???????????????????????# =%!R #?????? ## | | ???????????????????????#@ !%RR" ## #?????? ##? | | ???????????????????????######"###?# #???????#?? | | ???????????????????????????????????####?????????? | | ????????????????????????????????????????????????? | | ????????????????????????????????????????????????? | | ????????????????????????????????????????????????? | | ????????????????????????????????????????????????? | | ????????????????????????????????????????????????? | | ????????????????????????????????????????????????? | | ????????????????????????????????????????????????? | | ????????????????????????????????????????????????? | | ????????????????????????????????????????????????? | | ????????????????????????????????????????????????? | | ????????????????????????????????????????????????? | | ????????????????????????????????????????????????? | | ????????????????????????????????????????????????? | | ????????????????????????????????????????????????? | | | | | | | | | | | | | | | | | +----------------------------------------------------+ Best States ------------- Heat Dissipation 35 Energy Generation 10 Energy Capacity 250 Matter Stores 300 Matter Capacity 300 Sight Range 16 Terrain Scan Density 85 Evasion (%) 44 Recoil Reduction 2 Item Schematics ----------------- None Robot Schematics ------------------ None Fabricated ------------ Nothing Alien Tech Used ----------------- None Achievements -------------- None Challenges ------------ None Game ------ Seed OmegaAluminumFlakker Manual? 0 Play Time 00:26:03 Cumulative 6.7 hours Start 2024.10.23 @ 14:46:02 End 2024.10.23 @ 15:17:31 Sessions 1 Manual Loads 0 Difficulty Rogue Special Mode None Game No. 12 Rogue 12 Adventurer 0 Explorer 0 Win Type - Total 0 Types 0/0/0/0/0/0/0/0/0 Lore% 7 Gallery% 8 Achievement% 11 Wizard Run 0 Options --------- Layout 1 ASCII 0 Keyboard 1 Movement Arrows Keybinds 0 Fullscreen 2 Font 24/Smallcaps Map View 50x35 Zoom Use 0% Tactical HUD 0 Map Filters NONE Filters NONE Steam 1 RUN: b1ef74fc-bfff-40b8-bbc6-cd9e64b3ba99